[Event "LTU-ch Women 2019"]
[Site "Vilnius"]
[Date "2019.03.17"]
[Round "3.2"]
[White "Malisauskiene, Marina"]
[Black "Ramanauskaite, Giedre"]
[Result "1/2-1/2"]
[ECO "A65"]
[WhiteElo "1869"]
[BlackElo "1870"]
[Annotator "NA RC"]
[PlyCount "184"]
[EventDate "2019.??.??"]
[EventCountry "LTU"]
[SourceTitle "playchess.com"]
[Source "ChessBase"]
[SourceQuality "1"]
[TimeControl "5400+30"]

{[%evp 44,184,19,32767,36,32767,32767,0,32767,32767,32767,-44,25,25,49,52,43,54,59,42,32767,45,58,46,32767,0,54,54,64,32767,32767,32767,25,0,32767,11,35,16,64,36,66,60,77,32767,32767,43,85,54,55,42,20,42,45,12,42,49,44,89,267,234,357,355,366,354,356,354,931,678,735,265,279,32767,32767,32767,32767,32767,32767,32767,0,0,27,39,0,0,0,0,0,0,0,0,232,32767,36,0,40,30,54,55,54,55,54,55,54,55,54,54,55,54,77,-510,152,133,32767,32767,32767,32767,32767,32767,32767,32767,32767,32767,32767,171,173,93,133,104,105,0,152,133,184,199,171,56,192,199,156,133,163,166,197]} 1. d4 {[%emt 0:00:00]} Nf6 {[%emt 0:00:00]} 2. c4 {[%emt 0:00:00]} c5 {[%emt 0:00:00]} 3. d5 {[%emt 0:00:00]} e6 {[%emt 0:00:35]} 4. Nc3 {[%emt 0:00:00]} exd5 {[%emt 0:00:10]} 5. cxd5 {[%emt 0:00:00]} d6 {[%emt 0:00:23]} 6. e4 {[%emt 0:00:00]} g6 {[%emt 0:00:10]} 7. h3 {[%emt 0:00:29]} Bg7 {[%emt 0:00:35]} 8. Nf3 {[%emt 0:00:16]} O-O {[%emt 0:00:16]} 9. Bd3 {[%emt 0:00:03]} a6 {[%emt 0:00:42]} 10. a4 {[%emt 0:00:02]} b6 {[%emt 0:01:31]} 11. O-O {[%emt 0:00:15]} Re8 {[%emt 0:00:47]} 12. Re1 {[%emt 0:00:47] A70: Modern Benoni: 6 e4 g6 7 Nf3} Nfd7 {[%emt 0:03:32]} (12... Ra7 13. Bf4 Nh5 14. Bh2 Be5 15. Nxe5 dxe5 16. Qd2 Qf6 17. Qe3 Nd7 18. Rab1 {1-0 (75) Istratescu,A (2636)-Rathnakaran,K (2453) Montreal 2008}) 13. Bg5 $146 {[%emt 0:02:53]} ({Predecessor:} 13. Bf4 Ne5 14. Nxe5 dxe5 15. Be3 Qd6 16. Nb1 f5 17. f3 f4 18. Bf2 Qf6 19. a5 b5 20. Bxc5 {1-0 (43) Bartos,J (2211)-Hladik,L (2084) Ostrava 2002}) 13... f6 {[%emt 0:00:34]} 14. Bh4 {[%emt 0:02:09]} g5 {[%emt 0:03:12]} 15. Bg3 {[%emt 0:00:07]} Ne5 {[%emt 0:00:14]} 16. Bxe5 {[%emt 0:04:02]} fxe5 {[%emt 0:00:17]} 17. Nd2 {[%emt 0:01:49]} Nd7 {[%emt 0:01:48]} 18. g4 {[%emt 0:01:13]} Nf8 {[%emt 0:01:01]} 19. Nc4 {[%emt 0:11:16]} Ng6 {[%emt 0:03:26]} 20. Ra3 {[%emt 0:00:26]} Nf4 {[%emt 0:02:07]} 21. Bf1 {[%emt 0:00:16]} Rb8 {[%emt 0:01:31]} 22. Ne3 {[%emt 0:06:01]} Qc7 {[%emt 0:02:06]} 23. Kh2 {[%emt 0:03:42]} Qb7 {[%emt 0:03:44]} 24. Rb3 {[%emt 0:06:36]} Bf8 {[%emt 0:02:03]} 25. Ng2 {[%emt 0:06:00]} Bd7 {[%emt 0:09:31]} 26. f3 {[%emt 0:07:27]} Ra8 {[%emt 0:08:32]} 27. Qc2 {[%emt 0:10:48]} Nxg2 {[%emt 0:03:05]} ({Black should play} 27... Qc7 $15) 28. Kxg2 {[%emt 0:00:38]} Qc7 {[%emt 0:00:21]} 29. Bc4 {[%emt 0:01:24]} Reb8 {[%emt 0:03:35]} 30. Ra1 {[%emt 0:01:24]} Be7 {[%emt 0:03:15]} 31. Kg3 {[%emt 0:07:43]} h6 {[%emt 0:05:30]} 32. Qd3 {[%emt 0:02:35]} Qc8 {[%emt 0:00:30]} 33. Nd1 {[%emt 0:01:54]} Qe8 {[%emt 0:06:29]} 34. Nc3 {[%emt 0:02:51]} Qc8 $1 {[%emt 0:01:44]} 35. Rba3 {[%emt 0:02:19]} Kg7 {[%emt 0:03:29]} 36. Qb1 {[%emt 0:05:36]} Bd8 {[%emt 0:08:39]} 37. Qf1 {[%emt 0:03:47]} Be7 {[%emt 0:01:34]} 38. b3 {[%emt 0:01:46]} Qf8 {[%emt 0:02:53]} 39. R3a2 {[%emt 0:01:40]} Bc8 {[%emt 0:02:37]} 40. Qd3 {[%emt 0:00:36]} Qd8 {[%emt 0:04:51]} 41. Nd1 {[%emt 0:01:17]} Ra7 {[%emt 0:02:33]} 42. Ne3 {[%emt 0:00:05]} Kf7 {[%emt 0:00:27]} 43. Nc2 {[%emt 0:01:52]} Qd7 {[%emt 0:02:46]} 44. b4 {[%emt 0:00:39]} h5 {[%emt 0:03:55]} 45. Qb3 {[%emt 0:01:29]} h4+ {[%emt 0:00:14]} 46. Kf2 {[%emt 0:00:11]} Qc7 {[%emt 0:01:19]} 47. Kg2 {[%emt 0:00:42]} Raa8 {[%emt 0:00:24]} 48. Ne1 {[%emt 0:01:08]} a5 {[%emt 0:00:40]} 49. bxa5 {[%emt 0:00:43]} Rxa5 {[%emt 0:00:53]} 50. Nd3 {[%emt 0:00:06]} Ba6 $2 {[%emt 0:00:13] [#]} (50... Kg7 $14) 51. Nxe5+ $1 {[%emt 0:00:11]} Ke8 {[%emt 0:00:34]} (51... Kg8 $142 52. Nc6 {[%mdl 64] Trapped Piece} Bxc4 53. Qxc4 Bf6 54. Nxb8 Bxa1) 52. Nc6 {[%emt 0:00:16] Trapped Piece} Bxc4 {[%emt 0:01:00]} 53. Qxc4 {[%emt 0:00:03]} Bf6 {[%emt 0:00:43]} 54. Rb1 {[%emt 0:01:34]} ({Not} 54. Nxa5 bxa5 55. Rf1 Be5 $16) ({But not} 54. Nxb8 Bxa1 55. Nc6 (55. Rxa1 Qxb8 56. Re1 Kd7 $18) 55... Be5 $18) 54... b5 $2 {[%emt 0:01:12]} (54... Rba8 55. Nxa5 bxa5 56. Qb5+ Kd8) 55. Qc2 {[%emt 0:03:46]} b4 {[%emt 0:00:47]} 56. Nxa5 $2 {[%emt 0:00:58]} (56. e5 Bxe5 57. Qg6+ Kf8 58. Qf5+ Qf7 59. Qxf7+ Kxf7 60. Nxa5) 56... Qxa5 {[%emt 0:00:06]} 57. Qc4 {[%emt 0:00:29]} Kf7 {[%emt 0:00:20]} 58. Rb3 {[%emt 0:00:22]} Be5 {[%emt 0:00:18]} 59. Rd3 {[%emt 0:00:30]} Ra8 {[%emt 0:00:40]} 60. Rdd2 {[%emt 0:00:16]} Rb8 {[%emt 0:01:43]} 61. Rd3 {[%emt 0:00:56]} Ra8 {[%emt 0:00:11]} 62. Kf2 {[%emt 0:00:24]} Qb6 {[%emt 0:00:36]} 63. Ke2 {[%emt 0:00:12]} Ra5 {[%emt 0:00:07]} 64. Rb3 {[%emt 0:00:37]} Qd8 {[%emt 0:00:12]} 65. Qc1 {[%emt 0:01:14]} Bf4 {[%emt 0:00:14]} 66. Qc2 {[%emt 0:00:22]} Qb6 $2 {[%emt 0:00:43]} (66... Be5 $11 {and Black stays safe.}) 67. Qc4 {[%emt 0:00:46]} Qd8 {[%emt 0:00:10]} 68. Rb1 {[%emt 0:00:21]} Ke8 {[%emt 0:00:37]} 69. Kd3 {[%emt 0:00:13]} Kd7 {[%emt 0:00:12]} 70. Kc2 {[%emt 0:00:10]} Qf6 {[%emt 0:00:27]} 71. Kb3 {[%emt 0:00:37]} Be5 {[%emt 0:00:31]} 72. Qd3 {[%emt 0:01:14]} Kc7 {[%emt 0:00:06]} 73. Rc1 {[%emt 0:00:11]} Kb6 {[%emt 0:00:18]} 74. Rcc2 {[%emt 0:00:13]} Qf4 {[%emt 0:00:12]} 75. Qe2 {[%emt 0:00:21]} Qg3 {[%emt 0:00:21]} 76. Qg2 $2 {[%emt 0:00:07]} (76. Qf1 $14 {keeps the upper hand.}) 76... Qxg2 $2 {[%emt 0:00:17]} (76... Qe1 $19 77. Qd2 Qf1) 77. Rxg2 {[%emt 0:00:03]} Bf4 {[%emt 0:00:11]} 78. Rac2 {[%emt 0:01:31]} Ra8 {[%emt 0:00:21]} 79. Rg1 {[%emt 0:00:12]} Rf8 {[%emt 0:00:29]} 80. Rf1 {[%emt 0:00:03]} Ka5 {[%emt 0:00:09]} 81. Ra2 {[%emt 0:00:05]} Be5 {[%emt 0:00:15]} 82. Kc4 {[%emt 0:00:25]} Rf4 {[%emt 0:00:16]} 83. Re2 {[%emt 0:01:37]} Rf8 {[%emt 0:01:23]} 84. Ree1 {[%emt 0:00:59]} (84. f4 $18 gxf4 85. Rf3) 84... Rf4 {[%emt 0:00:09]} 85. Rb1 {[%emt 0:00:30]} (85. Rd1 $18) 85... Rf8 {[%emt 0:00:19] [#]} 86. Rf2 {[%emt 0:00:06]} ({Better is} 86. Rbc1 $1 $16) 86... Rf4 $2 {[%emt 0:00:10]} (86... Bd4 $11 87. Rff1) 87. Rbf1 {[%emt 0:00:45]} Bd4 {[%emt 0:00:15]} (87... Rf7 $16 88. Rc2 Rf4) 88. Rd2 {[%emt 0:00:26]} Be5 {[%emt 0:00:09]} 89. Rff2 {[%emt 0:00:45]} ({White should try} 89. Rd3 $16) 89... Bc3 $2 {[%emt 0:00:22]} (89... Bd4 $1 $11 {and Black stays safe.}) 90. Rd3 {[%emt 0:00:23]} Be5 {[%emt 0:00:09]} 91. Rc2 {[%emt 0:01:31]} Rf8 {[%emt 0:00:27]} 92. Re2 {[%emt 0:00:18]} Rf4 $18 {[%emt 0:00:15]} 1/2-1/2

[Event "LTU-ch Women 2019"]
[Site "Vilnius"]
[Date "2019.03.17"]
[Round "3.3"]
[White "Maciulaityte, Barbora"]
[Black "Sibajeva, Marija"]
[Result "0-1"]
[ECO "B01"]
[WhiteElo "1765"]
[BlackElo "2023"]
[Annotator "NA RC"]
[PlyCount "78"]
[EventDate "2019.??.??"]
[EventCountry "LTU"]
[SourceTitle "playchess.com"]
[Source "ChessBase"]
[SourceQuality "1"]
[TimeControl "5400+30"]

{[%evp 24,78,31,32767,32767,31,32767,32767,35,40,22,0,38,0,28,32767,35,0,32767,0,0,-16,-23,-17,-27,32767,32767,-51,-28,32767,32767,32767,0,32767,32767,32767,-61,32767,32767,-47,-53,-69,-46,-79,69,47,77,0,0,0,0,-40,-41,-40,-8,-1180,-1182]} 1. e4 {[%emt 0:00:00]} d5 {[%emt 0:00:15]} 2. exd5 {[%emt 0:00:00]} Qxd5 {[%emt 0:00:10]} 3. Nc3 {[%emt 0:00:06]} Qa5 {[%emt 0:00:07]} 4. d4 {[%emt 0:01:32]} Nf6 {[%emt 0:00:11]} 5. Bd3 {[%emt 0:04:07]} Bg4 {[%emt 0:09:25]} 6. f3 {[%emt 0:09:57]} Bh5 {[%emt 0:00:38]} 7. Nge2 {[%emt 0:00:47] B01: Scandinavian Defence} e6 {[%emt 0:02:52]} 8. O-O {[%emt 0:06:04]} Nc6 {[%emt 0:02:36]} (8... c6 9. Nf4 Bg6 10. Ne4 Nbd7 11. c3 Be7 12. Qe2 Nd5 13. Bd2 Qc7 14. g3 O-O 15. Nxg6 hxg6 {0-1 (56) Vonthron,H (2339)-Mueller,K (2489) Germany 2006}) 9. Ne4 {[%emt 0:03:12]} Nxe4 $146 {[%emt 0:02:49]} ({Predecessor:} 9... Be7 10. c3 Qb6 11. Kh1 e5 12. Nxf6+ Bxf6 13. d5 Ne7 14. Be4 Rd8 {1-0 (41) Johne,S (1890)-Elster,W (1765) Bad Woerishofen 2000}) 10. Bxe4 {[%emt 0:01:36]} Qb6 {[%emt 0:02:47]} 11. c3 {[%emt 0:02:35]} Bg6 {[%emt 0:09:03]} 12. Nf4 {[%emt 0:08:26]} O-O-O {[%emt 0:08:03]} 13. Nxg6 {[%emt 0:03:26]} hxg6 {[%emt 0:00:47]} 14. Qb3 {[%emt 0:01:12]} Bd6 {[%emt 0:09:34]} 15. h3 {[%emt 0:02:25]} Rh5 {[%emt 0:03:37]} 16. Qxb6 {[%emt 0:03:28]} axb6 {[%emt 0:04:52]} 17. Kf2 {[%emt 0:09:29]} Ne7 {[%emt 0:04:11]} 18. a3 {[%emt 0:05:16]} Kb8 {[%emt 0:09:42]} 19. Rd1 {[%emt 0:05:33]} c6 {[%emt 0:03:16]} 20. b3 {[%emt 0:06:37]} Nd5 {[%emt 0:04:58]} 21. Bb2 {[%emt 0:00:53]} Nf4 {[%emt 0:01:47]} 22. c4 {[%emt 0:01:00]} Rg5 {[%emt 0:00:47]} 23. Rg1 {[%emt 0:01:56]} Rh8 {[%emt 0:02:09]} 24. Bc1 {[%emt 0:01:59]} c5 {[%emt 0:07:58]} 25. Bxf4 {[%emt 0:01:32]} Bxf4 {[%emt 0:00:02]} 26. dxc5 {[%emt 0:00:41]} bxc5 {[%emt 0:01:09]} 27. Rad1 {[%emt 0:01:09] [#]} Be5 $2 {[%emt 0:00:38]} (27... Bg3+ $1 $17 28. Kf1 Re5) 28. Rh1 {[%emt 0:02:07]} Bd4+ {[%emt 0:00:51]} 29. Kf1 {[%emt 0:00:01]} f5 {[%emt 0:02:27]} 30. Bc2 {[%emt 0:02:27]} Kc7 {[%emt 0:00:45]} 31. Rd2 {[%emt 0:02:52]} b6 {[%emt 0:01:31]} 32. Re2 {[%emt 0:01:00]} e5 {[%emt 0:01:59]} 33. Ke1 {[%emt 0:01:07]} Rd8 {[%emt 0:00:15]} ({Black should play} 33... Rg3 $17) 34. g4 {[%emt 0:01:23]} Rh8 {[%emt 0:01:02] [#]} 35. Rg2 {[%emt 0:00:22]} (35. Reh2 $1 $16 Rh4 36. Kf1) 35... fxg4 {[%emt 0:00:54]} 36. fxg4 {[%emt 0:00:10]} e4 {[%emt 0:01:22]} 37. h4 {[%emt 0:01:29]} Re5 {[%emt 0:00:37]} 38. Re2 {[%emt 0:00:14]} Rf8 {[%emt 0:01:17]} 39. Rf1 $2 {[%emt 0:00:14]} (39. Bxe4 $11 Rfe8 40. Bd3) 39... Bc3+ $19 {[%emt 0:00:08]} 0-1

[Event "LTU-ch Women 2019"]
[Site "Vilnius"]
[Date "2019.03.17"]
[Round "3.4"]
[White "Perminaite, Guoda"]
[Black "Ravlusevic, Evelina"]
[Result "1/2-1/2"]
[ECO "B92"]
[WhiteElo "1814"]
[BlackElo "1704"]
[Annotator "NA RC"]
[PlyCount "84"]
[EventDate "2019.??.??"]
[EventCountry "LTU"]
[SourceTitle "playchess.com"]
[Source "ChessBase"]
[SourceQuality "1"]
[TimeControl "5400+30"]

{[%evp 20,79,29,32767,32767,32767,32767,32767,32767,-5,15,32767,32767,-78,-28,-33,-39,-42,-18,-18,9,18,30,0,16,32767,32767,32767,32767,32767,57,32767,32767,32767,81,67,32767,32767,32767,204,32767,259,205,32767,151,32767,142,32767,246,265,239,101,106,168,32767,168,158,166,237,0,0,0]} 1. e4 {[%emt 0:00:00]} c5 {[%emt 0:00:00]} 2. Nf3 {[%emt 0:00:00]} d6 {[%emt 0:00:00]} 3. d4 {[%emt 0:00:00]} cxd4 {[%emt 0:00:00]} 4. Nxd4 {[%emt 0:00:02]} Nf6 {[%emt 0:00:00]} 5. Nc3 {[%emt 0:00:16]} a6 {[%emt 0:00:00]} 6. Be2 {[%emt 0:00:36]} e5 {[%emt 0:00:08]} 7. Nf3 {[%emt 0:00:15]} h6 {[%emt 0:00:10]} 8. Nd2 {[%emt 0:01:31] B92: Sicilian Najdorf: 6 Be2} Be6 {[%emt 0:00:35]} (8... b5 9. a4 b4 10. Nd5 Nxd5 11. exd5 a5 12. Bb5+ Nd7 13. Nc4 Be7 14. Qg4 g6 15. Qe2 h5 {1-0 (50) Hovhannisyan,R (2637)-Andriasian,Z (2604) Yerevan 2019}) 9. Nc4 {[%emt 0:11:39]} b5 {[%emt 0:08:24]} 10. Ne3 {[%emt 0:01:09]} Nbd7 {[%emt 0:03:04]} 11. Bf3 {[%emt 0:14:00]} Rc8 $146 {[%emt 0:01:28]} ({Predecessor:} 11... Nb6 12. O-O Be7 13. Re1 O-O 14. Ne2 Rc8 15. Ng3 g6 {0-1 (71) Sahidi,S (2212)-Kosakowski,J (2363) Rymanow Zdroj 2017}) 12. O-O {[%emt 0:03:10]} Be7 {[%emt 0:00:11]} 13. Re1 {[%emt 0:07:50]} O-O {[%emt 0:00:55]} 14. Ncd5 {[%emt 0:11:46]} Nb6 {[%emt 0:12:07]} 15. c3 {[%emt 0:09:48]} Nfxd5 {[%emt 0:09:19]} 16. Nxd5 {[%emt 0:02:45]} Nxd5 {[%emt 0:01:56]} 17. exd5 {[%emt 0:00:06]} Bd7 {[%emt 0:00:13]} 18. Be2 {[%emt 0:00:47]} f5 {[%emt 0:01:09]} 19. a4 {[%emt 0:02:52]} Bg5 {[%emt 0:09:55]} 20. axb5 {[%emt 0:04:43]} axb5 {[%emt 0:03:44]} 21. Ra6 {[%emt 0:05:03]} Qf6 {[%emt 0:01:33]} 22. Qb3 {[%emt 0:04:54]} Bxc1 {[%emt 0:03:20]} 23. Rxc1 {[%emt 0:00:08]} Rc5 {[%emt 0:00:22]} 24. Rd1 {[%emt 0:01:14]} Qg6 {[%emt 0:04:39]} 25. Qb4 {[%emt 0:02:08]} Rfc8 {[%emt 0:04:00]} 26. Rb6 {[%emt 0:01:29]} f4 {[%emt 0:02:15]} 27. f3 {[%emt 0:04:08]} Bh3 {[%emt 0:11:31]} 28. Bf1 {[%emt 0:00:05]} Qc2 {[%emt 0:02:55] [#]} 29. Re1 $1 {[%emt 0:00:59]} Rxd5 {[%emt 0:02:16]} 30. Rxd6 {[%emt 0:04:09]} Rc4 {[%emt 0:01:40]} 31. Qa3 {[%emt 0:01:34]} Ra4 {[%emt 0:00:18]} 32. Qxa4 {[%emt 0:00:43]} bxa4 {[%emt 0:01:13]} 33. Rxd5 {[%emt 0:00:05]} Qxb2 {[%emt 0:01:05]} (33... Be6 $142 34. Rdxe5 Bf7) 34. gxh3 {[%emt 0:01:19]} Qxc3 {[%emt 0:00:59]} 35. Rdxe5 {[%emt 0:03:09]} (35. Rexe5 $18 a3 36. Re8+ Kf7 37. Ra8) 35... a3 {[%emt 0:00:36]} 36. Re8+ {[%emt 0:00:56]} Kh7 {[%emt 0:02:37] [#]} 37. Rd1 $1 {[%emt 0:01:06]} ({Much less strong is} 37. R1e2 Qa5 $16) 37... a2 {[%emt 0:00:24]} 38. Ree1 {[%emt 0:01:43]} Qxf3 {[%emt 0:03:37]} (38... Kg6 $142) 39. Ra1 $2 {[%emt 0:00:04]} (39. Bd3+ $18 g6 40. Bc4) 39... Qd5 {[%emt 0:01:01]} 40. Red1 $11 {[%emt 0:00:30]} Qc5+ {[%emt 0:02:10]} 41. Kg2 {[%emt 0:00:18]} Qc2+ {[%emt 0:01:25]} 42. Kg1 {[%emt 0:00:06]} Qc5+ {[%emt 0:00:12]} 1/2-1/2

[Event "LTU-ch Women 2019"]
[Site "Vilnius"]
[Date "2019.03.17"]
[Round "3.5"]
[White "Ditmonaite, Viktorija"]
[Black "Sukyte, Kotryna"]
[Result "1-0"]
[ECO "E61"]
[WhiteElo "1871"]
[BlackElo "1354"]
[Annotator "NA RC"]
[PlyCount "109"]
[EventDate "2019.??.??"]
[EventCountry "LTU"]
[SourceTitle "playchess.com"]
[Source "ChessBase"]
[SourceQuality "1"]
[TimeControl "5400+30"]

{[%evp 20,109,0,32767,32767,32767,32767,32767,32767,32767,53,32767,32767,10,32,24,32767,32767,32767,27,21,27,22,20,89,99,100,79,110,103,94,87,102,88,136,129,154,155,156,127,142,32767,32767,32767,32767,32767,108,115,32767,32767,32767,32767,32767,32767,32767,32767,32767,32767,313,625,734,739,789,654,5065,6961,5077,7649,5202,29978,29980,12814,29978,29980,29985,29986,29985,29987,29987,29988,29988,29989,29989,29990,29991,29991,29992,32767,29992,29993,29993,29994]} 1. d4 {[%emt 0:00:00]} Nf6 {[%emt 0:00:00]} 2. c4 {[%emt 0:00:30]} g6 {[%emt 0:00:30]} 3. Nc3 {[%emt 0:00:30]} Bg7 {[%emt 0:01:21]} 4. Nf3 {[%emt 0:00:30]} d6 {[%emt 0:00:30]} 5. e3 {[%emt 0:00:38]} O-O {[%emt 0:00:54]} 6. Be2 {[%emt 0:00:32]} Nbd7 {[%emt 0:00:53]} 7. O-O {[%emt 0:01:14]} e5 {[%emt 0:01:55]} 8. dxe5 {[%emt 0:00:36]} Nxe5 {[%emt 0:00:30]} 9. Qb3 $146 {[%emt 0:03:12] E61: King's Indian: Early deviations for White, including Smyslov System} ({Predecessor:} 9. Nxe5 dxe5 10. Qc2 c6 11. Rd1 Qe7 12. Bd2 e4 13. a3 Bf5 14. Na4 b6 15. Bb4 c5 16. Bc3 Rac8 {1-0 (52) Brinovec,D (2236)-Timagin,P (2318) Bled 2018}) 9... Ned7 {[%emt 0:10:28]} 10. Qc2 {[%emt 0:01:57]} Nc5 {[%emt 0:03:18]} 11. Nd4 {[%emt 0:02:53]} Ne6 {[%emt 0:06:39]} 12. h3 {[%emt 0:05:31]} Nxd4 {[%emt 0:01:58]} 13. exd4 {[%emt 0:00:30]} c6 {[%emt 0:02:45]} 14. Bg5 {[%emt 0:05:17]} Qc7 {[%emt 0:05:24]} 15. d5 {[%emt 0:08:24]} Bf5 {[%emt 0:09:56]} 16. Bd3 {[%emt 0:01:12]} Bxd3 {[%emt 0:01:05]} 17. Qxd3 {[%emt 0:00:30]} h6 {[%emt 0:06:20]} 18. Bf4 {[%emt 0:03:48]} g5 {[%emt 0:08:23]} 19. Bh2 {[%emt 0:00:30]} cxd5 {[%emt 0:00:30]} 20. Nxd5 {[%emt 0:00:30]} Nxd5 {[%emt 0:00:43]} 21. Qxd5 {[%emt 0:00:35]} Be5 {[%emt 0:02:13]} (21... Qc5 $11 {keeps the balance.}) 22. f4 {[%emt 0:05:59]} gxf4 {[%emt 0:02:54]} 23. Bxf4 {[%emt 0:00:30]} Bxf4 {[%emt 0:00:39]} 24. Rxf4 {[%emt 0:00:30]} Qc5+ {[%emt 0:02:22]} 25. Rd4 {[%emt 0:01:32]} Qxd5 {[%emt 0:01:32]} 26. Rxd5 {[%emt 0:00:30]} Rfd8 {[%emt 0:00:40]} 27. Rad1 {[%emt 0:00:30]} Rac8 {[%emt 0:00:30]} 28. c5 {[%emt 0:00:50]} ({Reject} 28. Rxd6 $6 Rxd6 29. Rxd6 Rxc4 $11) 28... Kf8 {[%emt 0:01:52]} 29. cxd6 {[%emt 0:02:38]} Rc2 {[%emt 0:03:29]} 30. Rb5 {[%emt 0:14:39]} b6 {[%emt 0:07:55]} 31. a4 {[%emt 0:02:42]} Rc6 {[%emt 0:01:29]} 32. Rbd5 {[%emt 0:00:30]} Ke8 {[%emt 0:02:02]} 33. b4 {[%emt 0:08:40]} a6 {[%emt 0:03:31]} 34. Kf2 {[%emt 0:04:07]} f6 {[%emt 0:03:04]} 35. Kf3 {[%emt 0:02:46]} Kf7 {[%emt 0:01:14]} 36. Kf4 {[%emt 0:06:06]} Rc4+ {[%emt 0:01:12]} 37. R1d4 {[%emt 0:00:30]} Rxd4+ {[%emt 0:00:30]} 38. Rxd4 {[%emt 0:00:30]} Ke6 {[%emt 0:05:01]} 39. g4 {[%emt 0:00:30]} Rd7 {[%emt 0:00:48]} 40. Ke4 {[%emt 0:03:51]} Rd8 {[%emt 0:01:37] [#]} 41. d7 $1 {[%emt 0:01:23]} Rxd7 {[%emt 0:00:41]} 42. Rxd7 {[%emt 0:00:30]} Kxd7 {[%emt 0:00:30]} 43. Kf5 {[%emt 0:00:30]} Ke7 {[%emt 0:00:30]} 44. Kg6 {[%emt 0:00:30]} Ke6 {[%emt 0:00:32]} 45. Kxh6 {[%emt 0:00:30]} Kf7 {[%emt 0:00:30]} 46. h4 {[%emt 0:00:30]} Kf8 {[%emt 0:00:40]} 47. Kg6 {[%emt 0:00:30]} Ke7 {[%emt 0:00:30]} 48. h5 {[%emt 0:00:30]} Kd6 {[%emt 0:00:30]} 49. h6 {[%emt 0:00:30]} Kd5 {[%emt 0:00:30]} 50. h7 {[%emt 0:00:30]} Kc4 {[%emt 0:00:30]} 51. h8=Q {[%emt 0:00:30]} Kxb4 {[%emt 0:00:30]} 52. Qxf6 {[%emt 0:00:30]} Ka5 {[%emt 0:00:30]} 53. Qd4 {[%emt 0:00:38]} (53. g5 $142 b5 54. Kh5 Kb4 55. g6 Kb3 56. g7 Ka3 57. g8=Q Kb4 58. Qd4+ Ka3 59. Qc3+ Kxa4 60. Qgb3#) 53... b5 {[%emt 0:00:30]} 54. axb5 {[%emt 0:00:30]} axb5 {[%emt 0:00:30]} 55. Kf6 {[%emt 0:00:30]} 1-0

[Event "LTU-ch Women 2019"]
[Site "Vilnius"]
[Date "2019.03.17"]
[Round "3.6"]
[White "Griksaite, Egle"]
[Black "Simkunaite, Gabija"]
[Result "0-1"]
[ECO "A40"]
[WhiteElo "1245"]
[BlackElo "1820"]
[Annotator "NA"]
[PlyCount "70"]
[EventDate "2019.??.??"]
[EventCountry "LTU"]
[SourceTitle "playchess.com"]
[Source "ChessBase"]
[SourceQuality "1"]
[TimeControl "5400+30"]

1. d4 {[%emt 0:00:00]} e6 {[%emt 0:00:15]} 2. Nf3 {[%emt 0:00:36]} b6 {[%emt 0:01:43]} 3. Bf4 {[%emt 0:01:16]} Nf6 {[%emt 0:01:32]} 4. e3 {[%emt 0:01:17]} d6 {[%emt 0:02:05]} (4... Bb7 5. Nbd2 Bd6 6. Bg3 O-O 7. a4 a6 8. Bd3 h6 9. e4 Bxg3 10. hxg3 d6 11. Qe2 e5 12. dxe5 dxe5 13. Nc4 {1-0 (53) Maghsoodloo,P (2688)-Jobava,B (2627) St Petersburg 2018}) 5. Bd3 {[%emt 0:02:01]} Be7 {[%emt 0:00:52]} 6. Nbd2 {[%emt 0:01:26] A47: 1 d4 Nf6 2 Nf3 b6: Torre, London and Colle Systems} Bb7 {[%emt 0:00:35]} 7. Qe2 {[%emt 0:02:21]} Nbd7 {[%emt 0:02:59]} 8. c3 {[%emt 0:02:30]} c5 {[%emt 0:03:30]} 9. O-O {[%emt 0:02:10]} Nh5 {[%emt 0:02:43]} 10. Bg3 {[%emt 0:01:12]} Nxg3 {[%emt 0:00:19]} 11. fxg3 {[%emt 0:00:34]} O-O {[%emt 0:01:49]} 12. e4 $146 {[%emt 0:00:57]} ({Predecessor:} 12. Bc2 Rc8 13. Rae1 g6 14. Ne4 f5 15. Nf2 Nf6 16. e4 f4 17. g4 cxd4 18. Nxd4 {½-½ (18) Wilke,W (1704)-Josting,F (1857) Hamburg 2018}) 12... e5 {[%emt 0:04:14]} 13. d5 {[%emt 0:01:22]} f5 {[%emt 0:03:32]} 14. c4 {[%emt 0:03:02]} f4 {[%emt 0:03:14]} 15. Qf2 {[%emt 0:02:30]} fxg3 {[%emt 0:06:56]} 16. Qxg3 {[%emt 0:00:31]} Rf6 {[%emt 0:02:19]} 17. Rf2 {[%emt 0:06:43]} Nf8 {[%emt 0:05:48]} 18. Raf1 $2 {[%emt 0:04:28] [#]} (18. Ne1 $15) 18... Rg6 $1 {[%emt 0:00:21]} 19. Qh3 {[%emt 0:01:21]} Bc8 {[%emt 0:00:02]} 20. Qh5 {[%emt 0:01:16]} Bg4 {[%emt 0:00:02] Trapped Piece} 21. Nxe5 {[%emt 0:01:59]} Bxh5 {[%emt 0:00:54]} 22. Nc6 {[%emt 0:00:54]} Qe8 {[%emt 0:03:17]} 23. e5 {[%emt 0:00:51]} dxe5 {[%emt 0:01:08]} 24. Bxg6 {[%emt 0:02:39]} Bxg6 {[%emt 0:00:57]} 25. Nxe5 {[%emt 0:00:32]} Bf6 {[%emt 0:00:20]} 26. Nc6 {[%emt 0:01:19]} Bd3 {[%emt 0:02:10]} 27. Rd1 {[%emt 0:01:03]} Ng6 {[%emt 0:03:45]} 28. b3 {[%emt 0:01:25]} b5 {[%emt 0:02:55]} 29. Nf3 {[%emt 0:01:08]} bxc4 {[%emt 0:00:08]} 30. bxc4 {[%emt 0:00:24]} Bxc4 {[%emt 0:00:10]} 31. Na5 {[%emt 0:01:21]} Qa4 {[%emt 0:01:36]} 32. Rc1 {[%emt 0:01:16]} Bxd5 {[%emt 0:00:13]} 33. Nb3 {[%emt 0:01:42]} Bxf3 $19 {[%emt 0:00:26]} 34. Nxc5 {[%emt 0:02:05]} Qa3 {[%emt 0:00:08]} 35. Rxf3 {[%emt 0:00:51]} Qxc1+ {[%emt 0:00:05]} 0-1

[Event "LTU-ch Women 2019"]
[Site "Vilnius"]
[Date "2019.03.18"]
[Round "4.1"]
[White "Ramanauskaite, Giedre"]
[Black "Kaspute, Vesta"]
[Result "0-1"]
[ECO "A05"]
[WhiteElo "1870"]
[BlackElo "2037"]
[Annotator "NA RC"]
[PlyCount "44"]
[EventDate "2019.??.??"]
[EventCountry "LTU"]
[SourceTitle "playchess.com"]
[Source "ChessBase"]
[SourceQuality "1"]
[TimeControl "5400+30"]

1. Nf3 {[%emt 0:00:51]} Nf6 {[%emt 0:00:00]} 2. g3 {[%emt 0:00:43]} g6 {[%emt 0:00:22]} 3. Bg2 {[%emt 0:00:20]} Bg7 {[%emt 0:00:31]} 4. c4 {[%emt 0:00:45]} O-O {[%emt 0:01:30]} 5. O-O {[%emt 0:00:15]} d5 {[%emt 0:05:20]} 6. cxd5 {[%emt 0:00:54]} Nxd5 {[%emt 0:00:09]} 7. Nc3 {[%emt 0:00:14]} Nb6 {[%emt 0:01:48]} 8. b3 {[%emt 0:01:57]} Nc6 {[%emt 0:01:37]} 9. Bb2 {[%emt 0:00:28]} a5 {[%emt 0:02:33]} 10. d3 {[%emt 0:02:55]} e5 {[%emt 0:02:36]} 11. Ne4 {[%emt 0:02:15]} a4 {[%emt 0:06:07]} 12. a3 {[%emt 0:02:10]} axb3 {[%emt 0:02:10]} 13. Qxb3 {[%emt 0:00:12]} Be6 {[%emt 0:02:22]} 14. Qc2 {[%emt 0:00:14]} Na4 {[%emt 0:07:02]} 15. Nc5 {[%emt 0:01:45]} Nxb2 {[%emt 0:24:47]} 16. Nxe6 {[%emt 0:01:00]} fxe6 {[%emt 0:00:26]} 17. Qxb2 {[%emt 0:05:51]} e4 {[%emt 0:01:36]} 18. Qxb7 {[%emt 0:00:54]} exf3 {[%emt 0:00:45]} 19. Qxc6 {[%emt 0:00:23]} fxg2 {[%emt 0:00:26]} 20. Qxe6+ {[%emt 0:00:11]} Kh8 {[%emt 0:00:22]} 21. Kxg2 {[%emt 0:00:15]} Bxa1 {[%emt 0:00:18]} 22. Rxa1 {[%emt 0:00:15]} Qf6 {[%emt 0:02:59]} 0-1